lending/lending_fUSD_20250131
["ID","MTS","AMOUNT","RATE_DAILY","PERIOD"]
[351085679,1738329049973,-500.0,0.00016575,2]
[351085680,1738329049982,-500.0,0.00016575,2]
[351085681,1738329049991,-500.0,0.00016575,2]
[351085682,1738329050000,-646.43865272,0.00016575,2]
[351085683,1738329050009,-521.40252739,0.00016575,2]
[351085684,1738329050019,-500.0,0.00016575,2]
[351085685,1738329050028,-500.0,0.00016575,2]
[351085686,1738329050038,-703.48,0.00016575,2]
[351085687,1738329050046,-559.74,0.00016575,2]
[351085688,1738329050055,-1023.89,0.00016575,2]
[351085689,1738329050064,-500.0,0.00016575,2]
[351085690,1738329050073,-500.0,0.00016575,2]
[351085691,1738329050082,-500.0,0.00016575,2]
[351085692,1738329050092,-500.0,0.00016575,2]
[351085693,1738329050101,-897.9,0.00016575,2]
[351085694,1738329050111,-562.98,0.00016575,2]
[351085695,1738329050122,-500.0,0.00016575,2]
[351085696,1738329050137,-656.95,0.00016575,2]
[351085697,1738329050147,-780.63,0.00016575,2]
[351085698,1738329050155,-757.01,0.00016575,2]
[351085699,1738329050166,-1307.84,0.00016575,2]
[351085700,1738329050175,-500.0,0.00016575,2]
[351085701,1738329050185,-500.0,0.00016575,2]
[351085702,1738329050194,-1276.28,0.00016575,2]
[351085703,1738329050203,-500.0,0.00016575,2]
[351085704,1738329050213,-946.91,0.00016575,2]
[351085705,1738329050222,-500.0,0.00016575,2]
[351085706,1738329050232,-1506.86,0.00016575,2]
[351085707,1738329050241,-500.0,0.00016575,2]
[351085708,1738329050251,-500.0,0.00016575,2]
[351085709,1738329050260,-500.0,0.00016575,2]
[351085710,1738329050269,-913.16,0.00016575,2]
[351085711,1738329050280,-842.64,0.00016575,2]
[351085712,1738329050291,-4700.11,0.00016575,2]
[351085713,1738329050301,-500.0,0.00016575,2]
[351085714,1738329050311,-500.0,0.00016575,2]
[351085715,1738329050321,-500.0,0.00016575,2]
[351085716,1738329050331,-2679.05,0.00016575,2]
[351085717,1738329050341,-500.0,0.00016575,2]
[351085718,1738329050351,-500.0,0.00016575,2]
[351085719,1738329050361,-832.31,0.00016575,2]
[351085720,1738329050371,-602.0,0.00016575,2]
[351085721,1738329050389,-1350.96,0.00016575,2]
[351085722,1738329050399,-500.0,0.00016575,2]
[351085723,1738329050409,-500.0,0.00016575,2]
[351085724,1738329050419,-1808.31,0.00016575,2]
[351085725,1738329050429,-500.0,0.00016575,2]
[351085726,1738329050438,-500.0,0.00016575,2]
[351085727,1738329050448,-2639.36,0.00016575,2]
[351085728,1738329050458,-517.85,0.00016575,2]
[351085729,1738329050467,-1179.41,0.00016575,2]
[351085730,1738329050476,-743.52,0.00016575,2]
[351085731,1738329050486,-1606.73,0.00016575,2]
[351085732,1738329050495,-1623.99,0.00016575,2]
[351085733,1738329050504,-1404.02,0.00016575,2]
[351085734,1738329050514,-500.0,0.00016575,2]
[351085735,1738329050523,-1372.88,0.00016575,2]
[351085736,1738329050533,-500.0,0.00016575,2]
[351085737,1738329050542,-500.0,0.00016575,2]
[351085738,1738329050551,-864.92,0.00016575,2]
[351085739,1738329050561,-500.0,0.00016575,2]
[351085740,1738329050570,-1077.4,0.00016575,2]
[351085741,1738329050579,-705.67,0.00016575,2]
[351085742,1738329050588,-547.19,0.00016575,2]
[351085743,1738329050597,-500.0,0.00016575,2]
[351085744,1738329050606,-500.0,0.00016575,2]
[351085745,1738329050615,-540.12,0.00016575,2]
[351085746,1738329050624,-531.49,0.00016575,2]
[351085747,1738329050638,-500.0,0.00016575,2]
[351085748,1738329050648,-500.0,0.00016575,2]
[351085749,1738329050657,-2432.2,0.00016575,2]
[351085750,1738329050667,-1079.03,0.00016575,2]
[351085751,1738329050676,-500.0,0.00016575,2]
[351085752,1738329050686,-500.0,0.00016575,2]
[351085753,1738329050694,-500.0,0.00016575,2]
[351085754,1738329050704,-4651.18,0.00016575,2]
[351085755,1738329050713,-500.0,0.00016575,2]
[351085756,1738329050722,-500.0,0.00016575,2]
[351085757,1738329050731,-500.0,0.00016575,2]
[351085758,1738329050740,-1133.5,0.00016575,2]
[351085759,1738329050750,-500.0,0.00016575,2]
[351085760,1738329050760,-780.34,0.00016575,2]
[351085761,1738329050769,-500.0,0.00016575,2]
[351085762,1738329050778,-939.63,0.00016575,2]
[351085763,1738329050787,-500.0,0.00016575,2]
[351085764,1738329050796,-500.0,0.00016575,2]
[351085765,1738329050805,-968.83,0.00016575,2]
[351085766,1738329050814,-655.96,0.00016575,2]
[351085767,1738329050825,-788.07,0.00016575,2]
[351085768,1738329050834,-3928.65,0.00016575,2]
[351085769,1738329050844,-500.0,0.00016575,2]
[351085770,1738329050853,-500.0,0.00016575,2]
[351085771,1738329050864,-530.52,0.00016575,2]
[351085772,1738329050874,-902.32,0.00016575,2]
[351085773,1738329050887,-1742.78,0.00016575,2]
[351085774,1738329050896,-500.0,0.00016575,2]
[351085775,1738329050906,-1011.06,0.00016575,2]
[351085776,1738329050915,-1067.01,0.00016575,2]
[351085777,1738329050924,-634.03,0.00016575,2]
[351085778,1738329050933,-1297.09,0.00016575,2]
[351085779,1738329050942,-500.0,0.00016575,2]
[351085780,1738329050952,-500.0,0.00016575,2]
[351085781,1738329050961,-2196.67,0.00016575,2]
[351085782,1738329050970,-2136.18,0.00016575,2]
[351085783,1738329050979,-860.21,0.00016575,2]
[351085784,1738329050988,-500.0,0.00016575,2]
[351085785,1738329050998,-2394.82,0.00016575,2]
[351085786,1738329051007,-500.0,0.00016575,2]
[351085787,1738329051016,-910.7,0.00016575,2]
[351085788,1738329051026,-500.0,0.00016575,2]
[351085789,1738329051035,-822.68,0.00016575,2]
[351085790,1738329051044,-851.19,0.00016575,2]
[351085791,1738329051053,-545.29543799,0.00016575,2]
[351085792,1738329051063,-1226.61,0.00016575,2]
[351085793,1738329051072,-500.0,0.00016575,2]
[351085794,1738329051081,-702.01,0.00016575,2]
[351085795,1738329051090,-1195.54,0.00016575,2]
[351085796,1738329051100,-914.12,0.00016575,2]
[351085797,1738329051111,-1799.07,0.00016575,2]
[351085798,1738329051121,-500.0,0.00016575,2]
[351085799,1738329051133,-802.58,0.00016575,2]
[351085800,1738329051142,-1903.73,0.00016575,2]
[351085801,1738329051151,-595.06,0.00016575,2]
[351085802,1738329051161,-500.0,0.00016575,2]
[351085803,1738329051170,-500.0,0.00016575,2]
[351085804,1738329051181,-500.0,0.00016575,2]
[351085805,1738329051190,-561.73381974,0.00016575,2]
[351085806,1738329051199,-743.87,0.00016575,2]
[351085807,1738329051209,-500.0,0.00016575,2]
[351085808,1738329051219,-500.0,0.00016575,2]
[351085809,1738329051227,-500.0,0.00016575,2]
[351085810,1738329051237,-500.0,0.00016575,2]
[351085811,1738329051246,-500.0,0.00016575,2]
[351085812,1738329051255,-500.0,0.00016575,2]
[351085813,1738329051264,-949.43,0.00016575,2]
[351085814,1738329051273,-1357.44,0.00016575,2]
[351085815,1738329051282,-500.0,0.00016575,2]
[351085816,1738329051293,-500.0,0.00016575,2]
[351085817,1738329051305,-1613.89,0.00016575,2]
[351085818,1738329051314,-500.0,0.00016575,2]
[351085819,1738329051323,-2316.42,0.00016575,2]
[351085820,1738329051333,-500.0,0.00016575,2]
[351085821,1738329051342,-500.0,0.00016575,2]
[351085822,1738329051350,-1521.07,0.00016575,2]
[351085823,1738329051359,-500.0,0.00016575,2]
[351085824,1738329051368,-4073.26,0.00016575,2]
[351085825,1738329051378,-970.37,0.00016575,2]
[351085826,1738329051388,-1336.87,0.00016575,2]
[351085827,1738329051398,-500.0,0.00016575,2]
[351085828,1738329051407,-940.15,0.00016575,2]
[351085829,1738329051416,-500.0,0.00016575,2]
[351085830,1738329051426,-748.5,0.00016575,2]
[351085831,1738329051435,-1719.95,0.00016575,2]
[351085832,1738329051445,-500.0,0.00016575,2]
[351085833,1738329051454,-2592.1,0.00016575,2]
[351085834,1738329051464,-500.0,0.00016575,2]
[351085835,1738329051473,-500.0,0.00016575,2]
[351085836,1738329051482,-691.44,0.00016575,2]
[351085837,1738329051491,-500.0,0.00016575,2]
[351085838,1738329051500,-1294.35,0.00016575,2]
[351085839,1738329051509,-531.85,0.00016575,2]
[351085840,1738329051518,-500.0,0.00016575,2]
[351085841,1738329051527,-500.0,0.00016575,2]
[351085842,1738329051537,-1767.81,0.00016575,2]
[351085843,1738329051546,-846.99,0.00016575,2]
[351085844,1738329051556,-503.55064278,0.00016575,2]
[351085845,1738329051565,-970.18,0.00016575,2]
[351085846,1738329051574,-500.0,0.00016575,2]
[351085847,1738329051583,-500.0,0.00016575,2]
[351085848,1738329051593,-500.0,0.00016575,2]
[351085849,1738329051602,-759.68,0.00016575,2]
[351085850,1738329051611,-951.55,0.00016575,2]
[351085851,1738329051621,-2923.5,0.00016575,2]
[351085852,1738329051632,-2217.75,0.00016575,2]
[351085853,1738329051641,-500.0,0.00016575,2]
[351085854,1738329051650,-1197.27,0.00016575,2]
[351085855,1738329051659,-557.92,0.00016575,2]
[351085856,1738329051669,-1870.89,0.00016575,2]
[351085857,1738329051679,-500.0,0.00016575,2]
[351085858,1738329051689,-1747.62,0.00016575,2]
[351085859,1738329051698,-500.0,0.00016575,2]
[351085860,1738329051707,-966.24,0.00016575,2]
[351085861,1738329051716,-2083.23,0.00016575,2]
[351085862,1738329051727,-500.0,0.00016575,2]
[351085863,1738329051736,-599.64970965,0.00016575,2]
[351085864,1738329051747,-629.6,0.00016575,2]
[351085865,1738329051757,-538.91,0.00016575,2]
[351085866,1738329051766,-500.0,0.00016575,2]
[351085867,1738329051775,-516.67,0.00016575,2]
[351085868,1738329051785,-1626.45,0.00016575,2]
[351085869,1738329051794,-500.0,0.00016575,2]
[351085870,1738329051803,-1334.9,0.00016575,2]
[351085871,1738329051813,-500.0,0.00016575,2]
[351085872,1738329051823,-500.0,0.00016575,2]
[351085873,1738329051833,-2622.35,0.00016575,2]
[351085874,1738329051843,-1398.57,0.00016575,2]
[351085875,1738329051853,-1784.61,0.00016575,2]
[351085876,1738329051862,-500.0,0.00016575,2]
[351085877,1738329051871,-500.0,0.00016575,2]
[351085878,1738329051883,-694.6,0.00016575,2]
[351085879,1738329051893,-500.0,0.00016575,2]
[351085880,1738329051902,-1559.33,0.00016575,2]
[351085881,1738329051911,-549.49,0.00016575,2]
[351085882,1738329051920,-707.62,0.00016575,2]
[351085883,1738329051930,-3575.06,0.00016575,2]
[351085884,1738329051939,-851.01,0.00016575,2]
[351085885,1738329051948,-1639.99,0.00016575,2]
[351085886,1738329051957,-1126.03,0.00016575,2]
[351085887,1738329051966,-6700.13,0.00016575,2]
[351085888,1738329051975,-500.0,0.00016575,2]
[351085889,1738329051984,-4983.19,0.00016575,2]
[351085890,1738329051993,-1480.7,0.00016575,2]
[351085891,1738329052003,-500.0,0.00016575,2]
[351085892,1738329052012,-514.25010213,0.00016575,2]
[351085893,1738329052021,-3420.33,0.00016575,2]
[351085894,1738329052030,-991.11,0.00016575,2]
[351085895,1738329052040,-583.56,0.00016575,2]
[351085896,1738329052049,-3727.24,0.00016575,2]
[351085897,1738329052058,-519.58845162,0.00016575,2]
[351085898,1738329052068,-607.97,0.00016575,2]
[351085899,1738329052077,-1206.07,0.00016575,2]
[351085900,1738329052086,-2404.98,0.00016575,2]
[351085901,1738329052095,-2513.62,0.00016575,2]
[351085902,1738329052104,-500.0,0.00016575,2]
[351085903,1738329052118,-1210.51,0.00016575,2]
[351085904,1738329052127,-907.28,0.00016575,2]
[351085905,1738329052138,-1839.12,0.00016575,2]
[351085906,1738329052147,-960.89,0.00016575,2]
[351085907,1738329052157,-171.26077035,0.00016575,2]
[351085908,1738329052166,-3367.69,0.00016575,2]
[351085909,1738329052175,-500.0,0.00016575,2]
[351085910,1738329052185,-710.73,0.00016575,2]
[351085911,1738329052194,-5138.96,0.00016575,2]
[351085912,1738329052203,-500.0,0.00016575,2]
[351085913,1738329052212,-1902.02,0.00016575,2]
[351085914,1738329052221,-500.0,0.00016575,2]
[351085915,1738329052230,-500.0,0.00016575,2]
[351085916,1738329052239,-500.0,0.00016575,2]
[351085917,1738329052248,-5350.71,0.00016575,2]
[351085918,1738329052258,-2209.52,0.00016575,2]
[351085919,1738329052267,-533.32,0.00016575,2]
[351085920,1738329052276,-500.0,0.00016575,2]
[351085921,1738329052285,-2383.23,0.00016575,2]
[351085922,1738329052294,-6171.09,0.00016575,2]
[351085923,1738329052304,-500.0,0.00016575,2]
[351085924,1738329052313,-2082.02,0.00016575,2]
[351085925,1738329052322,-1408.52,0.00016575,2]
[351085926,1738329052331,-1075.8,0.00016575,2]
[351085927,1738329052341,-500.0,0.00016575,2]
[351085928,1738329052350,-996.0,0.00016575,2]
[351085929,1738329052359,-500.0,0.00016575,2]
[351085930,1738329052368,-500.0,0.00016575,2]
[351085931,1738329052377,-919.54,0.00016575,2]
[351085932,1738329052389,-238.2447194,0.00016575,2]
[351085933,1738329052399,-500.0,0.00016575,2]
[351085934,1738329052409,-6333.8,0.00016575,2]
[351085935,1738329052418,-500.0,0.00016575,2]
[351085936,1738329052429,-500.0,0.00016575,2]
[351085937,1738329052439,-1782.62,0.00016575,2]
[351085938,1738329052448,-672.79,0.00016575,2]
[351085939,1738329052458,-500.0,0.00016575,2]
[351085940,1738329052467,-3051.84,0.00016575,2]
[351085941,1738329052476,-654.44,0.00016575,2]
[351085942,1738329052486,-4891.44,0.00016575,2]
[351085943,1738329052495,-500.0,0.00016575,2]
[351085944,1738329052505,-2090.99,0.00016575,2]
[351085945,1738329052514,-500.0,0.00016575,2]
[351085946,1738329052524,-1907.72,0.00016575,2]
[351085947,1738329052533,-669.8,0.00016575,2]
[351085948,1738329052543,-989.4,0.00016575,2]
[351085949,1738329052552,-3233.65,0.00016575,2]
[351085950,1738329052561,-1037.74,0.00016575,2]
[351085951,1738329052571,-4301.37,0.00016575,2]
[351085952,1738329052580,-500.0,0.00016575,2]
[351085953,1738329052589,-500.0,0.00016575,2]
[351085954,1738329052598,-1957.36,0.00016575,2]
[351085955,1738329052607,-5708.97,0.00016575,2]
[351085956,1738329052616,-500.0,0.00016575,2]
[351085957,1738329052625,-1160.4,0.00016575,2]
[351085958,1738329052637,-511.44014099,0.00016575,2]
[351085959,1738329052647,-500.0,0.00016575,2]
[351085960,1738329052656,-500.0,0.00016575,2]
[351085961,1738329052665,-654.25,0.00016575,2]
[351085962,1738329052675,-2792.48,0.00016575,2]
[351085963,1738329052684,-10518.3,0.00016575,2]
[351085964,1738329052693,-673.07,0.00016575,2]
[351085965,1738329052703,-500.0,0.00016575,2]
[351085966,1738329052711,-1835.72,0.00016575,2]
[351085967,1738329052721,-847.7,0.00016575,2]
[351085968,1738329052730,-1913.93,0.00016575,2]
[351085969,1738329052739,-500.0,0.00016575,2]
[351085970,1738329052748,-500.0,0.00016575,2]
[351085971,1738329052757,-500.0,0.00016575,2]
[351085972,1738329052766,-1347.02,0.00016575,2]
[351085973,1738329052775,-500.0,0.00016575,2]
[351085974,1738329052784,-2497.8,0.00016575,2]
[351085975,1738329052793,-557.58,0.00016575,2]
[351085976,1738329052802,-2265.21,0.00016575,2]
[351085977,1738329052811,-500.0,0.00016575,2]
[351085978,1738329052820,-500.0,0.00016575,2]
[351085979,1738329052829,-6256.88,0.00016575,2]
[351085980,1738329052838,-825.38,0.00016575,2]
[351085981,1738329052848,-11784.79,0.00016575,2]
[351085982,1738329052857,-500.0,0.00016575,2]
[351085983,1738329052866,-1455.39,0.00016575,2]
[351085984,1738329052875,-540.5399153,0.00016582,2]
[351085985,1738329052886,-386.75930587,0.00016617,2]
[351085986,1738329052896,-156.31,0.00016658,30]
[351085987,1738329052906,-540.5399153,0.00016703,2]
[351085988,1738329052916,-1489.712,0.00016711,2]
[351085989,1738329052925,-165.638,0.00016711,2]
[351085990,1738329052934,-798.88,0.00016711,2]
[351085991,1738329052944,-798.88,0.00016711,2]
[351085992,1738329052953,-798.88,0.00016711,2]
[351085993,1738329052962,-396822.38876008,0.00016712,2]
[351085994,1738329052972,-946.4,0.00016712,2]
[351085995,1738329052981,-1727.66327917,0.00016712,2]
[351085996,1738329052990,-1377.592842,0.00016712,2]
[351085997,1738329053000,-568.22,0.00016712,2]
[351085998,1738329053009,-385.05572585,0.00016712,2]
[351085999,1738329053019,-500.0,0.00016712,2]
[351086000,1738329053028,-957.03692,0.00016712,2]
[351086001,1738329053037,-500.0,0.00016712,2]
[351086002,1738329053047,-621.00902689,0.00016712,2]
[351086003,1738329053056,-543.51,0.00016712,2]
[351086004,1738329053065,-799.3,0.00016712,2]
[351086005,1738329053074,-500.0,0.00016712,2]
[351086006,1738329053084,-369.40575271,0.00016712,2]
[351086007,1738329053094,-567.52,0.00016712,2]
[351086008,1738329053103,-500.0,0.00016712,2]
[351086009,1738329053117,-863.39,0.00016712,2]
[351086010,1738329053127,-500.0,0.00016712,2]
[351086011,1738329053138,-500.0,0.00016712,2]
[351086012,1738329053147,-500.0,0.00016712,2]
[351086013,1738329053158,-500.0,0.00016712,2]
[351086014,1738329053168,-542.07,0.00016712,2]
[351086015,1738329053178,-500.0,0.00016712,2]
[351086016,1738329053187,-380.65884931,0.00016712,2]
[351086017,1738329053197,-502.63,0.00016712,2]
[351086018,1738329053207,-500.0,0.00016712,2]
[351086019,1738329053218,-500.0,0.00016712,2]
[351086020,1738329053227,-500.0,0.00016712,2]
[351086021,1738329053236,-584.56770077,0.00016712,2]
[351086022,1738329053245,-500.0,0.00016712,2]
[351086023,1738329053254,-500.0,0.00016712,2]
[351086024,1738329053263,-500.0,0.00016712,2]
[351086025,1738329053272,-500.0,0.00016712,2]
[351086026,1738329053281,-500.0,0.00016712,2]
[351086027,1738329053290,-500.0,0.00016712,2]
[351086028,1738329053299,-500.0,0.00016712,2]
[351086029,1738329053308,-500.0,0.00016712,2]
[351086030,1738329053317,-563.00132685,0.00016712,2]
[351086031,1738329053327,-479.60567059,0.00016712,2]
[351086032,1738329053336,-500.0,0.00016712,2]
[351086033,1738329053346,-268.708961,0.00016712,2]
[351086034,1738329053356,-500.0,0.00016712,2]
[351086035,1738329053365,-500.0,0.00016712,2]
[351086036,1738329053375,-500.0,0.00016712,2]
[351086037,1738329053385,-782.78,0.00016712,2]
[351086038,1738329053395,-500.0,0.00016712,2]
[351086039,1738329053404,-500.0,0.00016712,2]
[351086040,1738329053414,-500.0,0.00016712,2]
[351086041,1738329053423,-664.58,0.00016712,2]
[351086042,1738329053432,-506.32098422,0.00016712,2]
[351086043,1738329053441,-500.0,0.00016712,2]
[351086044,1738329053450,-540.11,0.00016712,2]
[351086045,1738329053460,-389.06849583,0.00016712,2]
[351086046,1738329053469,-500.0,0.00016712,2]
[351086047,1738329053478,-500.0,0.00016712,2]
[351086048,1738329053487,-1577.84,0.00016712,2]
[351086049,1738329053496,-500.0,0.00016712,2]
[351086050,1738329053505,-308.78,0.00016712,2]
[351086051,1738329053515,-376.71948177,0.00016712,2]
[351086052,1738329053524,-500.0,0.00016712,2]
[351086053,1738329053533,-871.13,0.00016712,2]
[351086054,1738329053542,-500.0,0.00016712,2]
[351086055,1738329053552,-572.13,0.00016712,2]
[351086056,1738329053561,-500.0,0.00016712,2]
[351086057,1738329053571,-1315.14,0.00016712,2]
[351086058,1738329053580,-1697.24,0.00016712,2]
[351086059,1738329053589,-558.36,0.00016712,2]
[351086060,1738329053598,-965.82,0.00016712,2]
[351086061,1738329053608,-500.0,0.00016712,2]
[351086062,1738329053617,-1231.46,0.00016712,2]
[351086063,1738329053626,-1021.78,0.00016712,2]
[351086064,1738329053637,-500.0,0.00016712,2]
[351086065,1738329053646,-500.0,0.00016712,2]
[351086066,1738329053656,-500.0,0.00016712,2]
[351086067,1738329053665,-1327.84,0.00016712,2]
[351086068,1738329053675,-500.0,0.00016712,2]
[351086069,1738329053685,-913.79,0.00016712,2]
[351086070,1738329053694,-500.0,0.00016712,2]
[351086071,1738329053703,-878.68,0.00016712,2]
[351086072,1738329053712,-500.0,0.00016712,2]
[351086073,1738329053722,-500.35,0.00016712,2]
[351086074,1738329053731,-500.0,0.00016712,2]
[351086075,1738329053740,-500.0,0.00016712,2]
[351086076,1738329053750,-500.0,0.00016712,2]
[351086077,1738329053759,-710.68,0.00016712,2]
[351086078,1738329053768,-500.0,0.00016712,2]
[351086079,1738329053777,-506.24,0.00016712,2]
[351086080,1738329053787,-1095.34,0.00016712,2]
[351086081,1738329053796,-500.0,0.00016712,2]
[351086082,1738329053806,-914.93,0.00016712,2]
[351086083,1738329053815,-500.0,0.00016712,2]
[351086084,1738329053825,-500.0,0.00016712,2]
[351086085,1738329053910,-759.24,0.00016712,2]
[351086086,1738329053954,-516.98,0.00016712,2]
[351086087,1738329053964,-500.0,0.00016712,2]
[351086088,1738329053974,-500.0,0.00016712,2]
[351086089,1738329053983,-973.51,0.00016712,2]
[351086090,1738329053992,-500.0,0.00016712,2]
[351086091,1738329054001,-544.01,0.00016712,2]
[351086092,1738329054010,-596.44,0.00016712,2]
[351086093,1738329054020,-500.0,0.00016712,2]
[351086094,1738329054029,-500.0,0.00016712,2]
[351086095,1738329054038,-500.0,0.00016712,2]
[351086096,1738329054047,-500.0,0.00016712,2]
[351086097,1738329054056,-500.0,0.00016712,2]
[351086098,1738329054064,-500.0,0.00016712,2]
[351086099,1738329054074,-500.0,0.00016712,2]
[351086100,1738329054083,-500.0,0.00016712,2]
[351086101,1738329054092,-500.0,0.00016712,2]
[351086102,1738329054101,-1436.84,0.00016712,2]
[351086103,1738329054110,-1260.54,0.00016712,2]
[351086104,1738329054121,-500.0,0.00016712,2]
[351086105,1738329054132,-980.35,0.00016712,2]
[351086106,1738329054141,-715.99,0.00016712,2]
[351086107,1738329054151,-500.0,0.00016712,2]
[351086108,1738329054160,-810.34,0.00016712,2]
[351086109,1738329054170,-843.3,0.00016712,2]
[351086110,1738329054179,-885.53,0.00016712,2]
[351086111,1738329054188,-500.0,0.00016712,2]
[351086112,1738329054198,-500.0,0.00016712,2]
[351086113,1738329054208,-946.66,0.00016712,2]
[351086114,1738329054218,-500.0,0.00016712,2]
[351086115,1738329054228,-802.32,0.00016712,2]
[351086116,1738329054238,-500.0,0.00016712,2]
[351086117,1738329054247,-500.0,0.00016712,2]
[351086118,1738329054257,-500.0,0.00016712,2]
[351086119,1738329054268,-1451.88,0.00016712,2]
[351086120,1738329054278,-500.0,0.00016712,2]
[351086121,1738329054287,-502.54,0.00016712,2]
[351086122,1738329054296,-500.0,0.00016712,2]
[351086123,1738329054306,-500.0,0.00016712,2]
[351086124,1738329054315,-500.0,0.00016712,2]
[351086125,1738329054324,-500.0,0.00016712,2]
[351086126,1738329054334,-500.0,0.00016712,2]
[351086127,1738329054343,-277.39611027,0.00016712,2]
[351086128,1738329054353,-845.24,0.00016712,2]
[351086129,1738329054363,-647.17,0.00016712,2]
[351086130,1738329054373,-698.25,0.00016712,2]
[351086131,1738329054383,-1165.58,0.00016712,2]
[351086132,1738329054393,-866.15,0.00016712,2]
[351086133,1738329054403,-781.77,0.00016712,2]
[351086134,1738329054412,-500.0,0.00016712,2]
[351086135,1738329054422,-500.0,0.00016712,2]
[351086136,1738329054432,-700.77,0.00016712,2]
[351086137,1738329054442,-686.74,0.00016712,2]
[351086138,1738329054452,-817.83,0.00016712,2]
[351086139,1738329054462,-895.02,0.00016712,2]
[351086140,1738329054471,-500.0,0.00016712,2]
[351086141,1738329054480,-500.0,0.00016712,2]
[351086142,1738329054490,-554.73,0.00016712,2]
[351086143,1738329054499,-500.0,0.00016712,2]
[351086144,1738329054509,-500.0,0.00016712,2]
[351086145,1738329054518,-500.0,0.00016712,2]
[351086146,1738329054527,-500.0,0.00016712,2]
[351086147,1738329054537,-761.12,0.00016712,2]
[351086148,1738329054546,-500.0,0.00016712,2]
[351086149,1738329054555,-500.0,0.00016712,2]
[351086150,1738329054565,-500.0,0.00016712,2]
[351086151,1738329054575,-468.20476881,0.00016712,2]
[351086152,1738329054585,-772.48,0.00016712,2]
[351086153,1738329054594,-500.0,0.00016712,2]
[351086154,1738329054604,-648.12,0.00016712,2]
[351086155,1738329054614,-594.43580543,0.00016712,2]
[351086156,1738329054623,-834.33,0.00016712,2]
[351086157,1738329054633,-500.0,0.00016712,2]
[351086158,1738329054643,-600.91,0.00016712,2]
[351086159,1738329054652,-821.05,0.00016712,2]
[351086160,1738329054662,-500.0,0.00016712,2]
[351086161,1738329054672,-753.32,0.00016712,2]
[351086162,1738329054682,-500.0,0.00016712,2]
[351086163,1738329054691,-719.94,0.00016712,2]
[351086164,1738329054701,-500.0,0.00016712,2]
[351086165,1738329054711,-500.0,0.00016712,2]
[351086166,1738329054722,-528.69,0.00016712,2]
[351086167,1738329054731,-928.65,0.00016712,2]
[351086168,1738329054741,-500.0,0.00016712,2]
[351086169,1738329054750,-1492.55,0.00016712,2]
[351086170,1738329054760,-667.48,0.00016712,2]
[351086171,1738329054769,-1144.46,0.00016712,2]
[351086172,1738329054779,-500.0,0.00016712,2]
[351086173,1738329054789,-567.66,0.00016712,2]
[351086174,1738329054799,-1194.43,0.00016712,2]
[351086175,1738329054808,-728.23,0.00016712,2]
[351086176,1738329054818,-500.0,0.00016712,2]
[351086177,1738329054827,-1214.08,0.00016712,2]
[351086178,1738329054837,-500.0,0.00016712,2]